bitfinex/quotes_SOLUSD_20250204
["timestamp","ask_amount","ask_price","bid_price","bid_amount"]
[1738698919555,29.58731519,210.89,210.86,1.0]
[1738698919746,29.58731519,210.87,210.83,4.743]
[1738698919968,29.58731519,210.86,210.85,1.0]
[1738698920170,29.58731519,210.86,210.82,29.07616443]
[1738698920357,29.58731519,210.83,210.82,29.07616443]
[1738698921578,29.58731519,210.87,210.83,5.7431]
[1738698921789,33.011,211.04,210.87,1.0]
[1738698921790,29.58731519,210.9,210.87,1.0]
[1738698922080,24.6902,211.06,210.83,16.6009]
[1738698922081,29.58731519,210.96,210.93,1.0]
[1738698922255,29.58731519,211.0,210.97,1.0]
[1738698922456,29.58731519,211.02,210.99,1.0]
[1738698922676,29.58731519,211.01,210.99,1.0]
[1738698922878,29.58731519,211.01,210.95,1.0]
[1738698923090,29.58731519,210.96,210.94,1.0]
[1738698923257,29.58731519,211.0,210.99,1.0]
[1738698923593,38.53031106,211.04,211.01,1.0]
[1738698923766,38.53031106,211.02,210.99,1.0]
[1738698923966,38.53031106,211.09,210.96,20.0]
[1738698923967,38.53031106,211.09,211.04,1.0]
[1738698924165,0.063,211.14,211.08,1.0]
[1738698924376,0.063,211.14,211.1,39.53031106]
[1738698924571,0.063,211.14,211.13,1.0]
[1738698924877,0.063,211.14,210.99,0.71053723]
[1738698924878,38.59331106,211.14,211.07,4.7377]
[1738698925058,0.063,211.14,211.1,20.0]
[1738698925261,0.063,211.14,211.13,1.0]
[1738698925466,0.063,211.14,211.12,21.0]
[1738698926168,0.063,211.14,211.12,1.0]
[1738698926356,38.53031106,211.2,211.18,1.0]
[1738698926557,38.53031106,211.22,211.18,1.0]
[1738698926807,38.53031106,211.22,211.2,1.0]
[1738698926963,38.53031106,211.24,211.2,1.0]
[1738698927158,38.53031106,211.26,211.24,1.0]
[1738698927458,38.53031106,211.28,211.24,1.0]
[1738698927660,38.59331106,211.3,211.26,1.0]
[1738698927859,38.59331106,211.3,211.19,17.28258707]
[1738698927860,0.063,211.3,211.28,1.0]
[1738698928176,38.59331106,211.3,211.26,1.0]
[1738698928358,38.59331106,211.3,211.28,1.0]
[1738698928562,0.063,211.3,211.28,1.0]
[1738698928765,38.59331106,211.36,211.35,5.7314]
[1738698929082,38.59331106,211.36,211.35,4.7314]
[1738698929083,0.063,211.36,211.35,4.7314]
[1738698929262,0.25098,211.35,211.25,1.0]
[1738698929470,38.53031106,211.26,211.2,4.7348]
[1738698929669,38.53031106,211.21,211.2,4.7348]
[1738698929974,38.53031106,211.21,211.19,1.0]
[1738698930162,38.53031106,211.29,211.26,1.0]
[1738698930360,38.53031106,211.31,211.27,1.0]
[1738698930599,38.53031106,211.31,211.29,1.0]
[1738698930804,38.53031106,211.31,211.24,1.0]
[1738698930986,38.53031106,211.31,211.15,1.0]
[1738698930987,0.25098,211.24,211.15,1.0]
[1738698931189,38.53031106,211.18,211.14,1.0]
[1738698931379,38.53031106,211.16,211.11,1.0]
[1738698931571,38.53031106,211.16,211.13,1.0]
[1738698931776,38.53031106,211.2,211.18,1.0]
[1738698931977,38.53031106,211.22,211.2,1.0]
[1738698932178,38.53031106,211.28,211.25,1.0]
[1738698932398,38.53031106,211.3,211.25,1.0]
[1738698932597,0.063,211.36,211.23,1.0]
[1738698932598,38.53031106,211.27,211.23,1.0]
[1738698932788,38.53031106,211.25,211.24,1.0]
[1738698933004,38.53031106,211.3,211.26,1.0]
[1738698933173,38.53031106,211.3,211.2,35.73664317]
[1738698933500,38.53031106,211.3,211.16,23.6786]
[1738698933501,0.80799097,211.36,211.24,1.0]
[1738698933702,13.98622633,211.34,211.31,22.09692954]
[1738698933885,13.98622633,211.34,211.27,38.53031106]
[1738698934276,13.98622633,211.34,211.33,20.0]
[1738698934488,0.063,211.36,211.35,20.0]
[1738698934693,0.063,211.36,211.24,0.70944339]
[1738698934909,0.063,211.36,211.14,23.70396091]
[1738698934910,1.74499097,211.35,211.14,23.70396091]
[1738698935390,0.25098,211.31,211.14,24.41415096]
[1738698935587,0.25098,211.31,211.16,23.44251898]
[1738698935785,0.74499097,211.35,211.18,23.88976571]
[1738698935993,38.53031106,211.29,211.19,24.21235863]
[1738698936186,38.53031106,211.25,211.15,23.77288912]
[1738698936399,38.53031106,211.29,211.18,38.53031106]
[1738698936600,38.53031106,211.31,211.22,38.53031106]
[1738698936790,38.53031106,211.35,211.25,20.0]
[1738698936979,38.53031106,211.27,211.17,38.53031106]
[1738698937176,38.53031106,211.23,211.13,38.53031106]
[1738698937407,38.53031106,211.23,211.1,0.70991411]
[1738698937408,38.53031106,211.23,211.14,0.71025749]
[1738698937703,38.53031106,211.27,211.16,38.53031106]
[1738698937905,38.53031106,211.21,211.17,20.0]
[1738698938079,38.53031106,211.19,211.11,4.7368]
[1738698938279,38.53031106,211.17,211.11,4.7368]
[1738698938497,38.53031106,211.19,211.11,4.7368]
[1738698938706,38.53031106,211.21,211.2,0.03]
[1738698938911,38.53031106,211.23,211.2,0.03]
[1738698939108,38.53031106,211.27,211.2,0.03]
[1738698939309,38.53031106,211.29,211.2,0.03]
[1738698939690,0.25098,211.24,211.2,0.03]
[1738698939887,38.78129106,211.21,211.2,0.03]
[1738698940104,38.53031106,211.23,211.2,0.03]
[1738698940409,1.0,211.33,211.2,38.56031106]
[1738698940410,38.53031106,211.29,211.2,38.56031106]
[1738698940618,38.53031106,211.27,211.2,0.03]
[1738698941004,38.53031106,211.29,211.2,38.56031106]
[1738698941194,0.063,211.34,211.22,38.53031106]
[1738698941195,38.53031106,211.31,211.22,38.53031106]
[1738698941616,0.31398,211.34,211.2,0.03]
[1738698941617,38.53031106,211.29,211.2,0.03]
[1738698941842,38.53031106,211.27,211.2,0.03]
[1738698942124,0.25098,211.22,211.2,0.03]
[1738698942316,38.53031106,211.25,211.2,0.03]
[1738698942827,0.25098,211.24,211.2,0.03]
[1738698943211,38.53031106,211.27,211.2,0.03]
[1738698943729,38.53031106,211.31,211.22,38.53031106]
[1738698944228,0.25098,211.32,211.24,38.53031106]
[1738698944409,0.063,211.34,211.3,38.53031106]
[1738698944615,38.53031106,211.44,211.32,38.53031106]
[1738698944810,38.53031106,211.42,211.31,38.53031106]
[1738698945010,38.53031106,211.4,211.31,38.53031106]
[1738698945316,38.53031106,211.52,211.41,20.0]
[1738698945661,38.53031106,211.52,211.42,38.53031106]
[1738698945959,14.04922633,211.55,211.46,38.53031106]
[1738698946131,14.04922633,211.55,211.48,38.53031106]
[1738698946452,14.04922633,211.55,211.54,38.53031106]
[1738698946961,55.95642078,211.6,211.46,0.70900401]
[1738698946962,12.291,211.58,211.53,24.47031106]
[1738698947119,38.53031106,211.54,211.36,4.731]
[1738698947326,38.53031106,211.43,211.36,4.731]
[1738698947636,38.53031106,211.53,211.42,38.53031106]
[1738698947828,38.53031106,211.55,211.47,20.0]
[1738698948151,38.53031106,211.57,211.47,20.0]
[1738698948366,38.53031106,211.53,211.45,7.30022427]
[1738698948555,38.53031106,211.58,211.45,7.30022427]
[1738698948853,38.53031106,211.58,211.48,20.0]
[1738698948854,0.25098,211.57,211.48,20.0]
[1738698949164,0.25098,211.57,211.45,45.83053533]
[1738698949165,38.53031106,211.52,211.45,7.30022427]
[1738698949447,38.53031106,211.58,211.48,20.0]
[1738698949654,38.53031106,211.58,211.48,20.31848504]
[1738698950150,38.53031106,211.58,211.5,20.0]
[1738698950653,15.5581591,211.58,211.5,24.728]
[1738698950951,0.063,211.6,211.51,38.84879755]
[1738698951159,0.063,211.6,211.56,20.0]
[1738698951452,0.063,211.6,211.53,0.31804859]
[1738698951750,0.063,211.6,211.56,20.0]
[1738698951933,0.063,211.6,211.59,20.0]
[1738698952531,0.063,211.6,211.53,38.53031106]
[1738698952736,38.59331106,211.6,211.52,7.30022427]
[1738698952937,0.063,211.6,211.52,7.30022427]
[1738698953143,38.78129106,211.53,211.52,7.30022427]
[1738698953321,0.063,211.6,211.52,7.30022427]
[1738698953322,38.53031106,211.55,211.52,7.30022427]
[1738698953526,38.53031106,211.53,211.52,7.30022427]
[1738698953753,38.78129106,211.53,211.52,7.30022427]
[1738698953928,38.78129106,211.53,211.42,0.03]
[1738698954134,38.53031106,211.49,211.42,0.03]
[1738698954344,38.53031106,211.45,211.42,0.03]
[1738698954538,38.53031106,211.49,211.42,0.03]
[1738698954927,38.53031106,211.47,211.42,0.03]
[1738698955128,38.53031106,211.45,211.42,0.03]
[1738698955855,4.7279,211.51,211.42,0.03]
[1738698956051,38.53031106,211.55,211.45,38.53031106]
[1738698956253,38.53031106,211.55,211.42,0.34934659]
[1738698956254,38.53031106,211.55,211.47,38.53031106]
[1738698956430,38.53031106,211.57,211.47,38.53031106]
[1738698956633,0.25098,211.56,211.47,38.53031106]
[1738698956955,38.53031106,211.55,211.47,38.53031106]
[1738698957129,38.53031106,211.55,211.45,43.25941106]
[1738698957333,38.53031106,211.56,211.47,38.53031106]
[1738698957536,38.53031106,211.52,211.43,38.53031106]
[1738698957730,38.53031106,211.52,211.44,20.0]
[1738698958135,38.53031106,211.47,211.42,0.03]
[1738698958334,38.53031106,211.43,211.42,0.03]
[1738698958649,38.53031106,211.47,211.42,0.03]
[1738698958961,38.53031106,211.51,211.43,20.0]
[1738698959164,38.53031106,211.55,211.47,20.0]
[1738698959336,38.53031106,211.55,211.44,38.53031106]
[1738698959337,38.53031106,211.55,211.46,38.53031106]
[1738698959537,0.25098,211.54,211.47,20.0]
[1738698959739,38.53031106,211.53,211.47,20.0]
[1738698960260,38.53031106,211.49,211.42,0.03]
[1738698960462,38.53031106,211.45,211.42,0.03]
[1738698960755,38.90678106,211.43,211.42,0.03]
[1738698960957,0.12549,211.39,211.24,41.50371106]
[1738698961131,0.25098,211.3,211.22,38.53031106]
[1738698961338,38.53031106,211.31,211.22,38.53031106]
[1738698961766,38.53031106,211.35,211.23,0.32088378]
[1738698961942,55.08411106,211.43,211.23,0.32088378]
[1738698961943,38.53031106,211.43,211.33,38.53031106]
[1738698962146,38.53031106,211.41,211.33,38.53031106]
[1738698962666,38.53031106,211.45,211.38,20.0]
[1738698962966,38.53031106,211.53,211.43,38.53031106]
[1738698963131,38.53031106,211.55,211.46,58.53031106]
[1738698963466,38.53031106,211.55,211.46,38.53031106]
[1738698963767,0.063,211.6,211.51,20.0]
[1738698964068,0.063,211.6,211.55,0.12549]
[1738698964257,0.063,211.72,211.57,0.12549]
[1738698964569,0.063,211.72,211.63,1.0]
[1738698964749,0.063,211.72,211.68,63.37990106]
[1738698965065,0.063,211.78,211.76,1.0]
[1738698965265,0.063,211.9,211.8,20.0]
[1738698965570,0.063,211.9,211.88,38.53031106]
[1738698965732,0.063,211.9,211.82,38.53031106]
[1738698965940,0.063,211.9,211.87,20.0]
[1738698966264,0.063,211.9,211.88,38.53031106]
[1738698966764,0.063,211.9,211.86,38.53031106]
[1738698966958,0.063,211.9,211.84,38.53031106]
[1738698967167,0.88495007,212.02,211.92,20.0]
[1738698967467,0.063,212.12,212.04,20.0]
[1738698967664,0.063,212.12,212.11,38.53031106]
[1738698968162,0.063,212.12,212.08,38.53031106]
[1738698968351,27.77448314,212.21,212.1,38.53031106]
[1738698968662,38.53031106,212.13,212.09,9.52168802]
[1738698968840,38.53031106,212.15,212.09,9.52168802]
[1738698969040,23.91959384,212.15,212.09,9.52168802]
[1738698969262,23.98294164,212.21,212.12,38.53031106]
[1738698969465,23.15683397,212.22,212.15,38.53031106]
[1738698969763,61.9475589,212.23,212.15,38.53031106]
[1738698969963,23.52357007,212.24,212.15,38.53031106]
[1738698970142,23.52720512,212.26,212.18,38.53031106]
[1738698970349,61.86903274,212.27,212.18,38.53031106]
[1738698970561,23.33872168,212.27,212.18,38.53031106]
[1738698970734,23.98230443,212.3,212.22,38.53031106]
[1738698970938,23.98230443,212.3,212.19,22.22533894]
[1738698970939,38.53031106,212.23,212.19,22.22533894]
[1738698971142,38.53031106,212.25,212.19,22.22533894]
[1738698971356,38.53031106,212.25,212.2,22.22533894]
[1738698971661,5.59407611,212.29,212.22,38.53031106]
[1738698971662,28.02821583,212.29,212.22,38.53031106]
[1738698971893,23.68950165,212.3,212.22,38.53031106]
[1738698972167,4.7101,212.31,212.22,38.53031106]
[1738698972464,38.53031106,212.32,212.22,38.53031106]
[1738698972646,38.53031106,212.32,212.2,22.22533894]
[1738698972647,38.53031106,212.36,212.26,38.53031106]
[1738698972835,23.85795181,212.33,212.24,38.53031106]
[1738698973037,38.53031106,212.3,212.23,9.52168802]
[1738698973265,38.53031106,212.24,212.23,9.52168802]
[1738698973469,38.78129106,212.24,212.23,9.52168802]
[1738698974250,38.53031106,212.28,212.23,9.52168802]
[1738698974570,38.53031106,212.3,212.23,9.52168802]
[1738698974762,61.5824199,212.32,212.23,9.52168802]
[1738698974946,0.94643182,212.4,212.23,9.52168802]
[1738698974947,28.56765181,212.33,212.24,38.53031106]
[1738698975139,62.08522262,212.36,212.26,38.53031106]
[1738698975340,38.53031106,212.32,212.24,9.52168802]
[1738698975543,0.063,212.4,212.33,19.86945591]
[1738698975756,0.063,212.4,212.36,38.53031106]
[1738698975951,0.063,212.4,212.31,0.31183386]
[1738698975952,0.063,212.4,212.38,23.79534393]
[1738698976147,0.063,212.4,212.27,23.0295899]
[1738698976382,0.25098001,212.4,212.31,23.18787082]
[1738698976548,0.25098001,212.4,212.38,38.53031106]
[1738698976549,1e-08,212.4,212.38,38.53031106]
[1738698976747,1e-08,212.4,212.39,42.36037125]
[1738698977152,1e-08,212.4,212.39,47.06867125]
[1738698977365,38.53031106,212.51,212.39,42.36037125]
[1738698977568,38.53031106,212.51,212.41,38.53031106]
[1738698977772,38.53031106,212.49,212.39,80.89068231]
[1738698978078,0.37647,212.44,212.39,45.53023381]
[1738698978282,1.0,212.58,212.39,45.53023381]
[1738698978497,1.0,212.51,212.39,42.36037125]
[1738698978668,38.53031106,212.4,212.39,42.10957125]
[1738698979059,38.53031106,212.41,212.39,42.10957125]
[1738698979279,38.53031106,212.43,212.39,42.10957125]
[1738698979559,38.53031106,212.49,212.39,81.63988231]
[1738698979762,38.53031106,212.45,212.39,42.10957125]
[1738698979991,38.53031106,212.43,212.39,42.10957125]
[1738698980282,38.53031106,212.42,212.39,42.10957125]
[1738698980487,38.53031106,212.4,212.39,18.40867125]
[1738698980670,38.05150357,212.4,212.38,3.698e-05]
[1738698980993,54.7089,212.36,212.3,55.19100938]
[1738698981301,76.60496714,212.31,212.3,55.19100938]
[1738698981466,38.55346357,212.31,212.3,55.19100938]
[1738698981660,0.25098,212.31,212.3,55.19100938]
[1738698982085,38.30248357,212.31,212.3,55.19100938]
[1738698982389,38.42797357,212.31,212.3,55.19100938]
[1738698982892,4.7083,212.39,212.31,1.0]
[1738698983060,38.05150357,212.4,212.36,1.0]
[1738698983262,0.12549,212.39,212.36,1.0]
[1738698983471,0.12549,212.39,212.3,59.90120938]
[1738698983472,0.50196,212.31,212.3,55.19100938]
[1738698983779,0.37647,212.3,212.22,1.0]
[1738698983983,8.91529264,212.31,212.28,1.0]
[1738698984361,0.12549,212.29,212.22,2.0]
[1738698984584,0.12549,212.28,212.23,1.0]
[1738698984793,2.97176421,212.3,212.29,1.0]
[1738698985165,2.97176421,212.3,212.29,40.05150357]
[1738698985569,2.843e-05,212.35,212.34,1.0]
[1738698985771,1.0,212.41,212.34,0.70649151]
[1738698985991,2.0,212.37,212.34,38.01120293]
[1738698986191,2.0,212.35,212.34,38.01120293]
[1738698986381,2.0,212.31,212.3,38.01120293]
[1738698986582,1.0,212.26,212.25,38.01120293]
[1738698986784,2.0,212.39,212.21,5.55253099]
[1738698987095,2.0,212.35,212.22,17.1984723]
[1738698987267,1.0,212.32,212.23,30.0]
[1738698987469,1.0,212.33,212.23,30.0]
[1738698987667,1.0,212.31,212.26,20.0]
[1738698987890,1.0,212.24,212.23,30.0]
[1738698988098,2.0,212.22,212.21,38.01120293]
[1738698988276,0.12549,212.31,212.08,38.01120293]
[1738698988277,1.0,212.2,212.13,0.7068592]
[1738698988477,2.0,212.22,212.19,38.01120293]
[1738698988695,2.25098,212.22,212.19,38.01120293]
[1738698988994,1.0,212.2,212.19,38.01120293]
[1738698989486,1.0,212.22,212.19,76.02240586]
[1738698989674,1.0,212.22,212.21,38.01120293]
[1738698991075,2.0,212.22,212.21,38.01120293]
[1738698991676,1.0,212.22,212.21,38.01120293]
[1738698992077,1.0,212.26,212.21,42.72330293]
[1738698992291,1.0,212.26,212.25,38.01120293]
[1738698992497,1.0,212.3,212.25,38.01120293]
[1738698992697,1.0,212.3,212.21,4.7121]
[1738698992698,1.0,212.36,212.33,20.0]
[1738698992891,2.0,212.41,212.35,42.72020293]
[1738698993090,1.0,212.41,212.4,38.01120293]
[1738698993295,2.0,212.44,212.4,38.01120293]
[1738698993607,1.0,212.42,212.41,38.01120293]
[1738698993796,1.0,212.38,212.35,38.01120293]
[1738698993989,38.01120293,212.44,212.31,38.01120293]
[1738698993990,1.0,212.32,212.31,38.01120293]
[1738698994175,1.0,212.31,212.29,38.01120293]
[1738698994395,1.0,212.33,212.29,38.01120293]
[1738698994596,1.0,212.34,212.32,38.01120293]
[1738698994900,2.0,212.34,212.32,38.01120293]
[1738698995299,1.0,212.41,212.32,42.72080293]
[1738698995479,1.0,212.39,212.38,38.01120293]
[1738698995677,2.0,212.39,212.38,38.01120293]
[1738698996894,2.0,212.35,212.34,38.01120293]
[1738698997099,1.0,212.33,212.32,38.01120293]
[1738698997277,1.0,212.27,212.26,38.01120293]
[1738698997478,2.25098,212.25,212.24,38.01120293]
[1738698997712,0.12549,212.3,212.2,23.61677008]
[1738698997878,0.70669738,212.32,212.25,38.01120293]
[1738698998074,0.12549,212.29,212.21,38.01120293]
[1738698998704,0.12549,212.27,212.19,38.01120293]
[1738698999014,0.70669738,212.27,212.19,38.01120293]
[1738698999306,0.70669738,212.27,212.09,35.64561086]
[1738698999307,42.72240293,212.26,212.21,0.063]
[1738698999484,0.70669738,212.25,212.21,0.063]
[1738698999804,38.38767293,212.24,212.21,0.063]
[1738699000019,0.70669738,212.29,212.23,38.01120293]
[1738699000307,38.01120293,212.36,212.27,38.01120293]
[1738699000509,5.41469738,212.4,212.21,0.063]
[1738699000510,4.708,212.4,212.32,38.01120293]
[1738699000679,42.71850293,212.44,212.34,38.01120293]
[1738699000880,42.71850293,212.44,212.21,0.76955866]
[1738699000881,38.01120293,212.4,212.3,38.01120293]
[1738699001179,17.18199738,212.44,212.23,0.70631858]
[1738699001180,38.01120293,212.43,212.34,38.01120293]
[1738699001379,38.01120293,212.49,212.38,38.01120293]
[1738699001576,38.01120293,212.47,212.38,38.01120293]
[1738699001773,38.01120293,212.43,212.32,38.01120293]
[1738699002010,38.01120293,212.47,212.38,38.01120293]
[1738699002196,38.01120293,212.5,212.4,38.01120293]
[1738699002513,0.03,212.51,212.42,38.01120293]
[1738699002685,38.01120293,212.5,212.42,38.01120293]
[1738699003013,0.37647,212.49,212.38,38.01120293]
[1738699003307,0.37647,212.49,212.32,0.70602756]
[1738699003308,0.25098,212.42,212.32,38.01120293]
[1738699003487,38.84339031,212.41,212.3,38.01120293]
[1738699003691,7.37684559,212.38,212.29,38.01120293]
[1738699003886,38.01120293,212.36,212.27,42.72210293]
[1738699004286,38.26218293,212.4,212.29,38.01120293]
[1738699004880,0.12549,212.37,212.29,38.01120293]
[1738699005103,38.01120293,212.38,212.29,38.01120293]
[1738699005283,0.25098,212.33,212.25,38.01120293]
[1738699005483,0.25098,212.33,212.23,42.72300293]
[1738699005988,0.25098,212.25,212.21,0.063]
[1738699006199,0.25098,212.23,212.21,0.063]
[1738699006781,38.38767293,212.22,212.21,0.063]
[1738699006996,0.50196,212.21,212.1,23.94032444]
[1738699007208,38.01120293,212.17,212.08,23.98106207]
[1738699007409,38.01120293,212.17,212.07,38.01120293]
[1738699007410,38.01120293,212.21,212.13,58.01120293]
[1738699007709,0.37647,212.21,212.13,38.01120293]
[1738699007899,0.37647,212.16,212.08,23.98106207]
[1738699008098,0.70669738,212.16,212.1,23.94032444]
[1738699008279,0.37647,212.16,212.08,23.98106207]
[1738699008684,38.01120293,212.13,212.05,23.71349303]
[1738699009012,0.12549,212.13,212.05,23.71349303]
[1738699009182,38.01120293,212.14,212.07,20.0]
[1738699009380,38.01120293,212.26,212.13,38.01120293]
[1738699009610,38.01120293,212.28,212.19,38.01120293]
[1738699009803,38.01120293,212.32,212.23,38.01120293]
[1738699010103,42.72060293,212.34,212.25,38.01120293]
[1738699010607,38.01120293,212.34,212.25,38.01120293]
[1738699010801,6.72513444,212.36,212.29,38.01120293]
[1738699011116,6.72513444,212.36,212.31,38.01120293]
[1738699011421,6.72513444,212.36,212.31,42.72100293]
[1738699011589,6.72513444,212.36,212.27,38.01120293]
[1738699011777,13.45026889,212.29,212.27,4.7108]
[1738699011977,13.45026889,212.29,212.28,38.01120293]
[1738699012593,13.45026889,212.29,212.26,38.01120293]
[1738699012815,13.45026889,212.29,212.24,38.01120293]
[1738699013107,38.26218293,212.32,212.24,38.01120293]
[1738699013482,38.01120293,212.38,212.28,38.01120293]
[1738699013688,38.01120293,212.42,212.33,38.01120293]
[1738699013907,38.01120293,212.48,212.39,38.01120293]
[1738699014281,38.01120293,212.48,212.31,0.70613868]
[1738699014282,38.01120293,212.46,212.37,38.01120293]
[1738699014792,38.01120293,212.42,212.33,38.01120293]
[1738699015104,0.12549,212.43,212.29,38.01120293]
[1738699015105,0.25098,212.37,212.29,38.01120293]
[1738699015927,0.25098,212.37,212.31,38.01120293]
[1738699016094,4.7084,212.39,212.31,38.01120293]
[1738699016430,54.29829587,212.61,212.29,4.7104]
[1738699016431,38.01120293,212.48,212.37,38.01120293]
[1738699016726,5.41279738,212.49,212.4,38.01120293]
[1738699016899,4.7061,212.49,212.4,38.01120293]
[1738699017230,38.01120293,212.48,212.4,38.01120293]
[1738699017535,38.13669293,212.42,212.31,42.72120293]
[1738699017823,0.25098,212.38,212.26,4.7112]
[1738699018023,0.25098,212.38,212.23,11.7793]
[1738699018024,38.13669293,212.37,212.27,38.01120293]
[1738699018226,0.25098,212.36,212.29,38.01120293]
[1738699018428,38.01120293,212.37,212.29,38.01120293]
[1738699018734,0.12549,212.42,212.25,38.01120293]
[1738699018735,38.01120293,212.33,212.25,38.01120293]
[1738699018911,0.25098,212.3,212.21,42.72330293]
[1738699019116,0.25098,212.28,212.21,38.01120293]
[1738699019422,0.25098,212.28,212.13,11.7849]
[1738699019423,4.96178,212.28,212.19,38.01120293]
[1738699019716,4.96178,212.28,212.21,38.01120293]
[1738699019921,42.72090293,212.33,212.23,38.01120293]
[1738699020128,38.01120293,212.39,212.29,38.01120293]
[1738699020336,38.01120293,212.41,212.33,38.01120293]
[1738699020633,38.01120293,212.36,212.27,38.01120293]
[1738699020838,7.24,212.48,212.23,21.0]
[1738699020839,38.01120293,212.45,212.23,21.0]
[1738699021039,4.7064,212.48,212.27,0.12549]
[1738699021248,4.7064,212.48,212.4,38.01120293]
[1738699021614,0.25098,212.41,212.33,38.01120293]
[1738699022017,38.13669293,212.4,212.31,38.01120293]
[1738699022336,0.25098,212.41,212.33,38.01120293]
[1738699022709,38.13669293,212.37,212.29,38.01120293]
[1738699022909,38.01120293,212.31,212.22,38.01120293]
[1738699023113,0.25098,212.28,212.2,38.01120293]
[1738699023338,0.25098,212.26,212.18,38.01120293]
[1738699023533,0.25098,212.26,212.16,38.01120293]
[1738699024037,0.25098,212.24,212.16,38.01120293]
[1738699024555,0.25098,212.24,212.13,4.714]
[1738699024556,38.01120293,212.21,212.13,23.83357655]
[1738699024750,0.25098,212.18,212.11,23.78391498]
[1738699024917,0.25098,212.18,212.1,61.22859468]
[1738699025252,0.25098,212.18,212.04,38.01120293]
[1738699025253,38.13669293,212.13,212.04,38.01120293]
[1738699025412,0.25098,212.07,211.99,38.07420293]
[1738699025614,38.01120293,212.06,211.99,0.063]
[1738699026150,38.01120293,212.04,211.99,0.063]
[1738699026347,38.01120293,212.0,211.96,0.063]
[1738699026637,38.01120293,211.93,211.83,38.01120293]
[1738699026814,38.01120293,211.93,211.85,38.01120293]
[1738699027014,0.70669738,211.99,211.91,38.01120293]
[1738699027250,0.70669738,211.99,211.86,38.01120293]
[1738699027251,0.70669738,212.07,211.97,38.01120293]
[1738699027415,7.08029538,212.09,212.04,38.01120293]
[1738699027612,7.08029538,212.09,212.08,38.01120293]
[1738699028251,7.08029538,212.15,212.08,38.01120293]
[1738699028456,45.09149831,212.25,212.14,38.01120293]
[1738699028660,7.08029538,212.25,212.23,38.01120293]
[1738699028858,45.09149831,212.25,212.15,38.01120293]
[1738699029177,45.09149831,212.25,212.06,12.828]
[1738699029178,0.25098,212.22,212.13,38.01120293]
[1738699029338,38.01120293,212.23,212.15,38.01120293]
[1738699029537,7.08029538,212.25,212.21,38.01120293]
[1738699029758,7.08029538,212.25,212.19,38.01120293]
[1738699029959,7.08029538,212.25,212.21,38.01120293]
[1738699030146,7.08029538,212.25,212.23,38.01120293]
[1738699030464,38.01120293,212.32,212.23,38.01120293]
[1738699030671,38.01120293,212.32,212.13,0.70687039]
[1738699030672,42.22770031,212.4,212.3,38.01120293]
[1738699030857,0.03,212.4,212.34,38.01120293]
[1738699031056,0.03,212.4,212.3,38.01120293]
[1738699031057,38.04120293,212.4,212.3,38.01120293]
[1738699031368,38.04120293,212.4,212.22,38.01120293]
[1738699031369,38.01120293,212.31,212.22,38.01120293]
[1738699031869,38.01120293,212.31,212.18,4.7129]
[1738699031870,0.25098,212.28,212.18,38.01120293]
[1738699032043,38.01120293,212.29,212.2,38.01120293]
[1738699032670,38.71790031,212.39,212.27,38.01120293]
[1738699032848,0.03,212.4,212.21,0.70674314]
[1738699032849,0.03,212.4,212.32,38.01120293]
[1738699033044,38.01120293,212.37,212.28,38.01120293]
[1738699033360,38.01120293,212.35,212.26,38.01120293]
[1738699033666,0.25098,212.36,212.26,38.01120293]
[1738699033869,38.01120293,212.31,212.22,38.01120293]
[1738699034049,38.01120293,212.35,212.26,38.01120293]
[1738699034245,0.25098,212.3,212.23,38.01120293]
[1738699034450,38.01120293,212.29,212.2,38.01120293]
[1738699035079,38.01120293,212.31,212.22,38.01120293]
[1738699035241,38.01120293,212.31,212.2,38.01120293]
[1738699035448,0.25098,212.28,212.2,38.01120293]
[1738699035643,0.25098,212.26,212.18,38.01120293]
[1738699035857,38.01120293,212.25,212.16,38.01120293]
[1738699036090,0.25098,212.27,212.13,4.7139]
[1738699036091,38.01120293,212.29,212.2,38.01120293]
[1738699036253,42.72130293,212.31,212.2,38.01120293]
[1738699036457,0.12549,212.24,212.16,38.01120293]
[1738699036662,38.01120293,212.27,212.18,38.01120293]
[1738699036866,38.01120293,212.25,212.16,38.01120293]